Cogmind - Beta 10.2 @@@ ROGUE MODE // 2021.07.03 @ 18:34:31 Player: Mares Result: Destroyed by G-73 Enforcer with Phase Gun Performance ------------- Evolutions (8) 4000 Regions Visited (32) 6400 Robots Destroyed (362) 1810 Value Destroyed (16679) 16679 Prototype IDs (70) 1400 Alien Tech Used (3) 600 Bonus (6840) 6840 TOTAL SCORE: 37729 Bonus ------- High Alert Combat Kills 1656 Follower Combat Kills 2497 Entered Garrisons 400 Used RIF Installer 1000 Network Hubs Disabled 200 Met Data Miner 300 Met Zhirov 300 Built Enhanced Grunts 300 A7 Reached Mainframe 300 Met R17 at Cetus 500 Met R17 at Research 2000 Friendly Fire -2613 Cogmind --------- Core Integrity 0/1450 Matter 300/300 Energy 99/100 System Corruption 22% Temperature Cool (0) Movement Core (50) Location -2/Research Parts ------- > --- POWER (1) -------- (None) > --- PROPULSION (4) --- (None) > --- UTILITY (13) ----- Experimental Optical Array Advanced Signal Interpreter Advanced Armor Integrity Analyzer > --- WEAPON (6) ------- (None) > --- INVENTORY (4) ---- Advanced Target Analyzer Improved Utility Shielding Relay Coupler [NC] (23) Enhanced Autogun Peak State ------------ > --- POWER ------------ Particle Reactor > --- PROPULSION ------- Heavy Siege Treads Heavy Siege Treads > --- UTILITY ---------- Advanced Coolant Injector Large Storage Unit High-capacity Storage Unit Experimental Optical Array Advanced Signal Interpreter Advanced Target Analyzer Advanced Armor Integrity Analyzer Improved Kinecellerator Improved Weapon Cycler Centrium Light Armor Plating Improved Hacking Suite Improved Hacking Suite Advanced Hacking Suite > --- WEAPON ----------- Enhanced Autogun Enhanced Autogun Enhanced Autogun Enhanced Autogun Enhanced Autogun Plasma Lance > --- INVENTORY -------- Light Particle Reactor Heavy Treads Advanced Medium Treads Biometal Heavy Treads Improved Coolant Injector Advanced Target Analyzer Advanced Transmission Jammer Improved Medium Armor Plating Antimissile System Relay Coupler [NC] Enhanced Quantum Rifle Nova Cannon Enhanced Autogun Railgun Micro-nuke Launcher Advanced Remote Datajack [Rating: 146] Favorites ----------- Power Antimatter Reactor Engine Improved Deuterium Engine Power Core Micro Fission Core Reactor Antimatter Reactor Propulsion Centrium Heavy Treads Treads Centrium Heavy Treads Leg Enhanced Flexi-carbon Leg Wheel Centrium Wheel Utility High-capacity Storage Unit Device Experimental Sensor Array Storage High-capacity Storage Unit Processor Advanced Signal Interpreter Hackware Improved Hacking Suite Protection Centrium Medium Armor Plating Weapon Enhanced Autogun Energy Gun Advanced Variable Charge Gun Energy Cannon Heavy Ion Cannon Ballistic Gun Enhanced Autogun Ballistic Cannon Advanced Assault Cannon Launcher Mini Smartbomb Launcher Special Weapon Remote Datajack Slashing Weapon Great Axe Piercing Weapon Plasma Lance Build | -11 -10 -10 -9 -9 -9 -8 -8 -8 -8 -8 -7 -7 -7 -7 -6 -6 -6 -6 -6 -6 -5 -5 -5 -5 -5 -5 -4 -4 -4 -4 -3 -2 ------- Run | Scr Mat Min Mat Min Exi Min Mat Gar Mat Gar Fac Low Low Dat Pro Fac Ext Cet Arc Hub Fac Was Fac Upp Upp Zhi Pro Fac Arm Lab Res Res Slots Evolved 16 | . . . 2 . . . 2 . . . 2 . . . . 2 . . . . 2 . . . . . . 2 . . 2 2 Power . | . . . . . . . . . . . . . . . . . . . . . . . . . . . . . . . . . Propulsion 1 | . . . . . . . . . . . 1 . . . . . . . . . . . . . . . . . . . . . Utility 11 | . . . 1 . . . 2 . . . 1 . . . . 2 . . . . 1 . . . . . . 2 . . . 2 Weapon 4 | . . . 1 . . . . . . . . . . . . . . . . . 1 . . . . . . . . . 2 . Parts Attached 484 | 6 7 4 13 . 2 2 3 7 22 8 16 7 4 17 15 16 31 12 7 19 10 6 4 3 1 8 7 46 46 . 108 27 Power 27 | 1 1 1 1 . . . . 1 1 . 1 . . . 2 . . 1 . . 1 1 . . . . . 3 3 . 7 2 Engine 7 | 1 1 . 1 . . . . . 1 . 1 . . . 1 . . . . . 1 . . . . . . . . . . . Core 6 | . . 1 . . . . . 1 . . . . . . 1 . . . . . . . . . . . . 2 1 . . . Reactor 14 | . . . . . . . . . . . . . . . . . . 1 . . . 1 . . . . . 1 2 . 7 2 Propulsion 61 | 2 1 2 2 . . 1 . 2 4 1 2 1 . 3 5 3 4 2 . 2 1 . . . . . . 5 1 . 9 8 Treads 50 | 2 1 2 2 . . 1 . 2 4 1 2 1 . . 2 1 4 2 . 2 1 . . . . . . 5 1 . 7 7 Leg 10 | . . . . . . . . . . . . . . 3 3 2 . . . . . . . . . . . . . . 1 1 Wheel 1 | . . . . . . . . . . . . . . . . . . . . . . . . . . . . . . . 1 . Hover . | . . . . . . . . . . . . . . . . . . . . . . . . . . . . . . . . . Flight . | . . . . . . . . . . . . . . . . . . . . . . . . . . . . . . . . . Utility 242 | 1 1 . 3 . 2 1 2 1 4 1 12 6 3 9 5 5 18 6 6 12 5 1 4 2 . 4 4 26 21 . 67 10 Device 131 | . . . . . . . . . . . 7 5 2 4 3 3 11 5 3 7 2 . 2 . . 2 2 13 10 . 47 3 Storage 23 | 1 1 . 1 . 2 . . . . . . 1 . 3 1 1 1 . . 1 1 . 1 1 . . . 1 4 . 2 . Processor 16 | . . . . . . . 1 . 2 . 1 . 1 2 . . 1 . . . . . . . . . . 1 . . 5 2 Hackware 9 | . . . . . . . . . 1 . . . . . . 1 . . 2 . 1 . . . . . . . 1 . . 3 Protection 63 | . . . 2 . . 1 1 1 1 1 4 . . . 1 . 5 1 1 4 1 1 1 1 . 2 2 11 6 . 13 2 Artifact . | . . . . . . . . . . . . . . . . . . . . . . . . . . . . . . . . . Weapon 154 | 2 4 1 7 . . . 1 3 13 6 1 . 1 5 3 8 9 3 1 5 3 4 . 1 1 4 3 12 21 . 25 7 Energy Gun 24 | . 1 1 3 . . . . . 3 . . . . . . 3 3 1 . . 2 1 . 1 . 1 . 3 1 . . . Energy Cannon 23 | . . . 2 . . . 1 . 5 2 . . . 2 . 3 . . . . . . . . . . . 1 6 . 1 . Ballistic Gun 70 | 2 3 . 1 . . . . 2 4 1 . . 1 . 1 2 4 2 1 3 . 3 . . . 2 1 5 9 . 18 5 Ballistic Cannon 4 | . . . . . . . . . . . . . . . 1 . 1 . . . . . . . . . . . 2 . . . Launcher 20 | . . . 1 . . . . 1 1 2 1 . . . 1 . 1 . . 2 . . . . 1 . 2 . 2 . 5 . Special Weapon 7 | . . . . . . . . . . . . . . . . . . . . . 1 . . . . 1 . 3 1 . 1 . Impact Weapon . | . . . . . . . . . . . . . . . . . . . . . . . . . . . . . . . . . Slashing Weapon 4 | . . . . . . . . . . 1 . . . 3 . . . . . . . . . . . . . . . . . . Piercing Weapon 2 | . . . . . . . . . . . . . . . . . . . . . . . . . . . . . . . . 2 Special Melee Weapon . | . . . . . . . . . . . . . . . . . . . . . . . . . . . . . . . . . Unidentified Prototypes 34 | . . . 1 . . . . . 5 . 1 1 . 3 . . . 4 . 1 . . . . . 4 . 2 2 . 8 2 Parts Lost 118 | . 5 1 2 . . 1 1 6 2 2 2 . . 7 3 3 3 3 . 12 . . . . . 2 1 16 3 . 23 20 Power 11 | . 1 1 . . . . . 1 . . . . . 1 1 . . . . 1 . . . . . . . 1 1 . 2 1 Propulsion 21 | . 1 . . . . . . . . 1 . . . 4 . 1 . 1 . 2 . . . . . . . 2 1 . 3 5 Utility 30 | . . . . . . 1 . 1 . . 2 . . . . . . 1 . 4 . . . . . 1 . 5 . . 9 6 Weapon 56 | . 3 . 2 . . . 1 4 2 1 . . . 2 2 2 3 1 . 5 . . . . . 1 1 8 1 . 9 8 Highest Loss Streak 9 | . 5 1 2 . . 1 1 3 1 1 1 . . 6 3 3 2 3 . 6 . . . . . 2 1 8 1 . 9 9 Average Slot Usage (%) 89 | . 90 99 97 100 100 100 98 95 99 96 99 91 92 76 87 92 94 88 86 83 65 83 88 88 88 84 87 86 85 70 90 75 Engine 2 | . 13 7 6 11 11 11 9 7 5 9 7 7 7 2 2 6 6 3 . . . . . . . . . . . . . . Reactor 2 | . . . . . . . . . . . . . . . . . . 2 6 5 . 4 5 5 5 5 5 3 1 . 3 3 Treads 14 | . 22 28 22 22 22 22 18 18 18 17 23 23 28 10 4 3 22 13 12 11 10 11 11 11 11 11 11 9 9 5 10 6 Leg 1 | . . . . . . . . . . . . . . 11 22 20 2 . . . . . . . . . . . . . . 1 Device 6 | . . . . . . . . . . . 7 7 7 6 6 11 9 11 10 5 7 3 4 5 5 5 4 7 7 5 10 12 Storage 16 | . 26 28 22 22 22 22 18 18 18 18 15 14 14 11 14 12 12 12 12 12 16 16 16 16 16 16 16 15 18 20 16 7 Processor 10 | . . . . . . . 8 9 10 9 15 14 14 19 14 12 12 12 12 12 11 11 11 11 11 11 11 10 10 10 11 16 Hackware 6 | . . . . . . . . . 8 9 5 . . . . 5 6 6 11 11 11 11 11 11 11 11 11 10 11 10 6 10 Protection 4 | . . . 11 11 11 11 17 18 7 8 1 . . . . . 4 6 2 5 1 6 5 4 5 2 5 11 5 . 2 1 Energy Gun 3 | . 4 17 16 . . . . . . . . . . . . 2 7 10 1 . 3 8 11 11 5 9 11 5 . . . . Energy Cannon 4 | . . . 3 22 22 22 18 10 13 15 15 14 14 1 11 8 . . . . . . . . . . . 1 1 5 . . Ballistic Gun 11 | . 22 10 11 11 11 11 9 8 12 5 . . 4 . 2 4 8 7 16 16 . 8 11 11 11 9 10 10 15 10 24 13 Naked Turns . | . . . . . . . . . . . . . . . . . . . . . . . . . . . . . . . . . Heaviest Build 240 | 13 45 46 59 59 83 83 85 85 92 97 102 144 146 135 139 147 169 114 114 109 87 117 138 138 140 140 145 161 232 209 240 99 Greatest Support 160 | 40 40 40 40 40 40 43 43 43 40 40 63 83 83 84 100 75 96 160 160 160 80 80 160 160 160 160 160 160 155 80 155 140 Greatest Overweight (x) 14 | 2 2 1 2 1 2 2 1 1 2 4 1 2 1 4 4 2 2 1 . 1 1 1 1 . . . . 2 2 2 14 2 Average Overweight (x) . | . 1 . 1 1 1 1 1 1 1 2 1 1 1 1 2 1 . . . . . 1 . . . . . . . 2 1 . Largest Inventory Capacity 54 | 6 14 14 16 16 20 20 20 20 20 20 20 40 32 32 32 32 40 20 20 20 20 20 28 28 28 28 28 28 48 48 54 18 Average Capacity 26 | 5 13 14 14 16 18 20 20 20 20 20 20 31 32 20 32 32 28 20 20 20 20 20 27 28 28 28 28 28 38 48 36 16 Most Carried 48 | 6 11 14 16 16 18 19 19 20 20 20 20 32 32 32 32 32 32 20 20 20 18 20 26 28 28 28 28 28 48 48 48 18 Average Carried 25 | 3 6 13 13 15 17 17 18 17 19 19 19 28 31 14 30 31 27 19 19 19 15 19 22 27 28 27 27 27 36 48 36 14 Final Capacity 48 | 6 14 14 16 16 20 20 20 20 20 20 20 32 32 32 32 32 20 20 20 20 20 20 28 28 28 28 28 28 48 48 18 4 Final Carried 48 | 6 11 14 16 16 18 19 19 20 20 19 20 31 32 27 32 30 20 20 20 16 17 20 26 28 28 28 28 26 48 48 16 4 Class Distribution -------------------- 22% | Hauler-Mutant 15% | Scavenger-Skirmisher 10% | Scavenger-Mutant 9% | Scavenger-Tank 8% | Machinist-Executioner 6% | Scavenger-Gunner 6% | Mutant 5% | Hauler-Gunner 4% | Hauler-Executioner 4% | Hauler-Skirmisher Dominant Class ---------------- Mutant | -10/Materials Mutant | -10/Mines Scavenger-Tank | -9/Materials Scavenger-Tank | -9/Mines Hauler-Tank | -9/Exiles Hauler-Mutant | -8/Mines Hauler-Tank | -8/Materials Hauler-Mutant | -8/Garrison Hauler-Gunner | -8/Materials Hauler-Mutant | -8/Garrison Hauler-Mutant | -7/Factory Hauler-Mutant | -7/Lower Caves Hauler-Skirmisher | -7/Lower Caves Hauler-Mutant | -7/Data Miner Hauler-Mutant | -6/Proximity Caves Hauler-Mutant | -6/Factory Scavenger-Skirmisher | -6/Extension Scavenger-Gunner | -6/Cetus Scavenger-Gunner | -6/Archives Scavenger-Mutant | -6/Hub_04(d) Scavenger-Mutant | -5/Factory Scavenger-Tank | -5/Waste Scavenger-Skirmisher | -5/Factory Scavenger-Skirmisher | -5/Upper Caves Scavenger-Skirmisher | -5/Upper Caves Scavenger-Mutant | -5/Zhirov Scavenger-Skirmisher | -4/Proximity Caves Scavenger-Tank | -4/Factory Hauler-Mutant | -4/Armory Hauler-Mutant | -4/Lab Machinist-Executioner | -3/Research Machinist-Gunner | -2/Research Resources | -11 -10 -10 -9 -9 -9 -8 -8 -8 -8 -8 -7 -7 -7 -7 -6 -6 -6 -6 -6 -6 -5 -5 -5 -5 -5 -5 -4 -4 -4 -4 -3 -2 ----------- Run | Scr Mat Min Mat Min Exi Min Mat Gar Mat Gar Fac Low Low Dat Pro Fac Ext Cet Arc Hub Fac Was Fac Upp Upp Zhi Pro Fac Arm Lab Res Res Matter Collected 13624 | 239 255 44 317 27 . 63 66 133 540 116 184 129 91 208 432 188 509 229 258 533 129 307 63 66 10 318 124 1476 1738 . 3660 1172 Remotely . | . . . . . . . . . . . . . . . . . . . . . . . . . . . . . . . . . Salvage Created 19504 | 51 367 161 1166 189 . 141 486 352 1435 193 205 100 213 397 356 248 749 178 376 845 129 289 . 30 . 556 165 2806 2087 . 3180 2054 Parts 952 | 4 36 12 62 8 . 16 26 10 86 7 14 3 8 12 9 12 33 8 23 46 4 1 . 1 . 10 2 130 116 . 123 130 Haulers Intercepted 14 | . 1 . 3 . . . 1 . 4 . . . . . . . . . . . . . . . . . . 3 . . 1 1 Recyclers Shooed 16 | . 2 . 1 . . . . . . . . . . . . . . . . . . . . . . . . 9 . . . 4 Parts Field Recycled . | . . . . . . . . . . . . . . . . . . . . . . . . . . . . . . . . . Retrieved Matter . | . . . . . . . . . . . . . . . . . . . . . . . . . . . . . . . . . Parts Self-Destructed 33 | . . . . . . . . . . . . 3 8 . . . . . . . . . . 7 . 5 10 . . . . . Prevented 7 | . . . . . . . . . . . . . . . . . . . . . . . . 4 . . 3 . . . . . Kills | -11 -10 -10 -9 -9 -9 -8 -8 -8 -8 -8 -7 -7 -7 -7 -6 -6 -6 -6 -6 -6 -5 -5 -5 -5 -5 -5 -4 -4 -4 -4 -3 -2 ------- Run | Scr Mat Min Mat Min Exi Min Mat Gar Mat Gar Fac Low Low Dat Pro Fac Ext Cet Arc Hub Fac Was Fac Upp Upp Zhi Pro Fac Arm Lab Res Res Combat Hostiles Destroyed 256 | . 10 3 19 . . 6 3 10 21 5 6 1 4 4 5 4 9 1 2 6 . . . . . . 4 31 29 . 45 28 Melee 12 | . 2 . . . . . . . . 1 . . . 4 . . . . . . . . . . . . . 1 . . . 4 Guns 173 | . 8 3 15 . . 1 . 4 7 1 . . 1 . . . 6 1 2 5 . . . . . . 2 28 25 . 40 24 Cannons 40 | . . . 1 . . 5 3 1 11 2 3 1 1 . 3 2 3 . . . . . . . . . . 2 1 . 1 . AOE 27 | . . . 3 . . . . 5 3 1 3 . 2 . 1 1 . . . 1 . . . . . . 2 . 1 . 4 . Classes Destroyed 22 | 1 5 1 3 1 . . . . 1 . 1 1 . . 1 1 . . . 1 . . . . . . . . 2 . 3 . Worker 14 | . . . 1 1 . . . . 1 . . . . . . . . . . 3 . . . . . . . 4 . . . 4 Builder 17 | . . 1 3 . . . 1 . 2 . 1 . . . . 1 . . . 1 . . . . . . . 4 . . . 3 Tunneler 4 | . . . . 1 . . . . . . . . . . . . . . . 1 . . . . . . . 1 . . . 1 Hauler 14 | . 1 . 3 . . . 1 . 4 . . . . . . . . . . . . . . . . . . 3 . . 1 1 Recycler 20 | 1 . . 2 2 . . 3 . 3 . . . . . . . 2 . . 1 1 . . . . . . 5 . . . . Minesweeper 3 | . . . . . . . . . . . . 1 . . . . . . . . . . . 1 . . 1 . . . . . Operator 14 | . 1 . . . . . . . 3 . . . . . . . . . 6 1 . . . . . . . 1 . . 2 . Watcher 13 | . 2 . 3 . . . . . 4 . . . . . . . . . . . . . . . . . . 1 2 . 1 . Swarmer 50 | . 4 . 3 . . 6 1 3 5 . 3 . . . . . . 1 . . . . . . . . 1 14 . . 3 6 Grunt 68 | . 6 3 11 . . 1 . 5 8 4 . . 3 . . 1 2 . . . . . . . . . 1 5 9 . 6 3 Brawler 5 | . . . . . . . . . . . . . . . . 1 . . . . . . . . . . 1 . . . 2 1 Duelist 5 | . . . 1 . . . . . . . . . 1 . . . 1 . . . . . . . . . . 1 . . . 1 Protector 2 | . . . . . . . . . . . . . . . . . . . . 1 . . . . . . . . . . . 1 Sentry 39 | . . . 4 . . . 2 2 6 1 1 . . . . . 5 . 2 2 . . . . . . 1 6 3 . 2 2 Demolisher 5 | . . . . . . . . . . . . . . . . . . . . . . . . . . . . . 1 . 4 . Specialist 4 | . . . . . . . . . . . . . . . . . . . . . . . . . . . . . 4 . . . Hunter 15 | . . . . . . . . . 2 . . . . . . 1 . . . . . . . . . . . . 1 . 8 3 Programmer 33 | . . . . . . . . . . . 2 1 . . . 1 . . . 1 . . . . . . . 5 11 . 1 11 Behemoth 1 | . . . . . . . . . . . . . . . . . . . . . . . . . . . . . . . 1 . Enhanced Grunt 7 | . . . . . . . . . . . . . . 4 . . . . . 3 . . . . . . . . . . . . Lightning 2 | . . . . . . . . . . . . . . . . . . . . 2 . . . . . . . . . . . . Striker 17 | . . . . . . . . . . . . . . . . . . . . . . . . . . . . . . . 17 . Executioner 1 | . . . . . . . . . . . . . . . . . . . . . . . . . . . . . . . 1 . Decomposer 1 | . . . . . . . . . . . . 1 . . . . . . . . . . . . . . . . . . . . Thug 2 | . . . . . . . . . . . . . . . 1 . . 1 . . . . . . . . . . . . . . Savage 2 | . . . . . . . . . . . . . . . . . 1 1 . . . . . . . . . . . . . . Butcher 4 | . . . . . . . . . . . . . . . 3 . . 1 . . . . . . . . . . . . . . Mutant 1 | . . . . . . . . . . . . . . . 1 . . . . . . . . . . . . . . . . . Best Kill Streak 10 | 1 6 2 6 2 . 3 6 5 6 2 3 1 4 1 5 2 2 1 3 4 1 . . 1 . . 2 9 3 . 7 10 Combat Bots Only 9 | . 6 2 5 . . 3 1 5 5 2 3 1 4 1 5 2 2 1 2 2 . . . . . . 2 8 3 . 7 9 Max Kills in Single Turn 4 | 1 1 1 3 1 . 1 2 3 2 1 2 1 2 1 1 2 1 2 1 4 1 . . 1 . . 2 3 2 . 2 2 Gunslinging 1 | . . . . . . . . . . . . . . . . . . . . . . . . . . . . . . . 1 . Exploded 3 | . . . 2 . . . . 3 1 1 2 . 2 . 1 1 . . . 1 . . . . . . 2 . 1 . 2 . Melee 1 | . 1 . . . . . . . . 1 . . . 1 . . . . . . . . . . . . . 1 . . . 1 Uniques/NPCs Destroyed . | . . . . . . . . . . . . . . . . . . . . . . . . . . . . . . . . . Combat | -11 -10 -10 -9 -9 -9 -8 -8 -8 -8 -8 -7 -7 -7 -7 -6 -6 -6 -6 -6 -6 -5 -5 -5 -5 -5 -5 -4 -4 -4 -4 -3 -2 -------- Run | Scr Mat Min Mat Min Exi Min Mat Gar Mat Gar Fac Low Low Dat Pro Fac Ext Cet Arc Hub Fac Was Fac Upp Upp Zhi Pro Fac Arm Lab Res Res Damage Taken 34427 | . 930 284 440 112 . 216 82 731 1113 510 329 45 172 875 848 571 749 334 72 4023 . . . . . 613 309 5999 2982 . 5913 6175 Core 4228 | . 175 29 28 11 . 15 15 64 194 47 6 . . 276 117 43 89 11 . 383 . . . . . 28 . 462 200 . 566 1469 Absorbed by Shields 345 | . . . . . . . . . . . . . . . . . 179 83 . . . . . . . 83 . . . . . . Reduced by Siege Mode 677 | . . . . . . . . . . . . . . . . . . . . 101 . . . . . . . 139 68 . 235 134 Core Remaining (%) 57 | 100 . 18 . . . 86 . . . 41 . . . . 43 . . . . 38 . . . . . . 97 . . 39 56 . Volleys Fired 1001 | 1 46 15 54 10 . 14 8 26 73 15 19 17 10 . 19 30 40 12 24 49 8 4 3 17 . 51 15 147 87 . 124 63 Largest 6 | 2 2 2 3 3 . 3 3 3 3 3 2 2 3 . 3 3 3 3 3 3 1 3 4 4 . 4 4 4 4 . 6 6 Hottest 373 | 40 70 106 159 159 . 159 159 159 155 155 130 130 155 . 138 180 156 165 150 103 80 208 241 241 . 373 218 218 303 . 150 160 Shots Fired 2722 | 2 92 30 140 29 . 34 23 51 197 29 35 34 23 . 31 43 79 24 66 119 8 12 12 29 . 54 34 339 265 1 615 272 Gun 2242 | 2 92 30 125 10 . 14 8 21 90 11 . . 4 . 1 25 55 24 66 115 8 12 12 29 . 50 32 307 223 1 603 272 Cannon 426 | . . . 12 19 . 20 15 26 102 15 32 34 18 . 22 18 21 . . . . . . . . . . 31 39 . 2 . Launcher 47 | . . . 3 . . . . 4 5 3 3 . 1 . 8 . 3 . . 4 . . . . . . 2 . 3 . 8 . Special 7 | . . . . . . . . . . . . . . . . . . . . . . . . . . 4 . 1 . . 2 . Kinetic 1937 | 2 88 9 54 10 . 14 8 21 90 11 . . 4 . 2 4 53 12 47 115 . 4 6 8 . 37 11 226 225 1 603 272 Thermal 636 | . 4 21 83 19 . 20 15 26 102 15 32 34 18 . 21 18 21 5 19 . 8 8 6 21 . 13 21 86 . . . . Explosive 39 | . . . 3 . . . . 4 5 3 3 . 1 . . . 3 . . 4 . . . . . . 2 . 3 . 8 . Electromagnetic 103 | . . . . . . . . . . . . . . . 8 21 2 7 . . . . . . . . . 26 37 . 2 . Robot Hit Streak 34 | 1 13 10 12 8 . 3 6 16 31 6 6 8 7 . 8 10 15 8 10 17 1 5 13 8 . 34 7 23 17 . 27 17 Robot Miss Streak 7 | 1 3 1 5 3 . 5 1 1 5 1 4 1 4 . 2 5 3 2 6 7 6 1 2 2 . 1 3 3 3 . 5 5 Penetration Max 4 | . . . . . . . . . . . . . . . . . 1 1 1 1 . . 2 2 . 1 . 4 1 . . 2 Secondary Targets 26 | . 2 . 1 . . . . . . . . . . . . . . . . 1 . . . . . . . 2 3 . 15 2 Max Gunslinging Chain 1 | . 1 . 1 . . . . . . . . . . . . . . . . 1 . . . . . . . 1 1 . 1 1 Shots Hit Robots 1806 | 1 61 25 89 15 . 13 9 40 125 18 15 15 8 31 14 16 55 16 35 68 1 10 10 12 . 40 17 220 177 . 442 208 Core Hits 850 | 1 21 7 45 7 . 9 8 22 56 12 11 3 11 12 11 8 43 14 19 55 2 2 2 4 . 24 10 104 71 . 163 93 Critical Hits 189 | . 1 . 2 2 . . 2 5 3 . . . . 1 . 1 . 2 7 13 . 2 1 3 . 12 . 37 52 . 27 16 Critical Kills 68 | . . . . 2 . . 2 1 2 . . . . . . 1 . . 1 6 . 1 . . . 3 . 11 23 . 9 6 Critical Parts Destroyed 110 | . 1 . 2 . . . . 4 1 . . . . 1 . . . 2 5 7 . 1 1 3 . 4 . 24 28 . 16 10 Melee Attacks 75 | . . . . . . . . . . 2 1 . . 43 . . . . . . . . . . . . . . . . . 29 Impact . | . . . . . . . . . . . . . . . . . . . . . . . . . . . . . . . . . Slashing 46 | . . . . . . . . . . 2 1 . . 43 . . . . . . . . . . . . . . . . . . Piercing 29 | . . . . . . . . . . . . . . . . . . . . . . . . . . . . . . . . 29 Sneak Attacks 4 | . . . . . . . . . . . . . . 2 . . . . . . . . . . . . . . . . . 2 Combat Hostiles . | . . . . . . . . . . . . . . . . . . . . . . . . . . . . . . . . . Follow-up Attacks 6 | . . . . . . . . . . . . . . 6 . . . . . . . . . . . . . . . . . . Damage Inflicted 42754 | 15 678 281 1622 275 . 293 222 1071 2771 771 715 463 341 1451 665 1114 1535 719 1054 3059 41 275 204 288 . 432 953 5332 2516 . 8418 5180 Guns 26645 | 15 644 281 987 51 . 87 28 228 719 160 . . 11 . . 172 918 466 1054 1689 41 275 183 288 . 432 353 4554 1333 . 7557 4119 Cannons 6163 | . . . 143 224 . 206 163 451 1697 242 503 463 189 . 246 268 235 . . . . . . . . . . 600 465 . 68 . Explosions 7170 | . . . 492 . . . . 392 342 332 212 . 141 . 419 674 382 253 . 1362 . . . . . . 600 104 681 . 784 . Melee 2516 | . . . . . . . . . . 37 . . . 1451 . . . . . . . . . . . . . . . . . 1028 Ramming 260 | . 34 . . . . . 31 . 13 . . . . . . . . . . 8 . . 21 . . . . 74 37 . 9 33 Kinetic 22644 | 15 607 55 369 51 . 87 28 228 719 160 . . 11 . . 43 621 229 699 1689 . 34 83 76 . 356 43 3467 1298 . 7557 4119 Thermal 9611 | . 37 226 761 224 . 206 163 451 1697 242 503 463 189 . 246 268 504 395 355 . 41 241 100 212 . 76 310 1607 94 . . . Explosive 5680 | . . . 492 . . . . 392 342 332 212 . 141 . . 674 382 . . 742 . . . . . . 600 . 587 . 784 . Electromagnetic 2043 | . . . . . . . . . . . . . . . 419 129 28 95 . 620 . . . . . . . 184 500 . 68 . Impact . | . . . . . . . . . . . . . . . . . . . . . . . . . . . . . . . . . Slashing 1488 | . . . . . . . . . . 37 . . . 1451 . . . . . . . . . . . . . . . . . . Piercing 1028 | . . . . . . . . . . . . . . . . . . . . . . . . . . . . . . . . 1028 Highest Corruption 46 | . 2 2 1 1 1 1 . . . . 3 4 4 4 4 . 2 2 2 46 . . . . . . . 24 38 38 1 22 Average Corruption 9 | . 2 2 1 1 1 1 . . . . 2 3 4 4 4 . 1 2 1 11 . . . . . . . 6 32 38 1 4 Corruption Purged 2 | . . . . . . . . . . . . . . . . . . . 2 . . . . . . . . . . . . . Effects 552 | . . 13 . 7 1 . . . . . 3 15 12 26 22 . 1 4 7 17 . . . . . . . 60 302 30 9 23 Message Errors 82 | . . 3 . 3 . . . . . . 1 1 4 8 4 . . 1 3 2 . . . . . . . 8 32 5 3 4 Matter Fused 66 | . . . . . . . . . . . . 6 3 5 4 . . . . . . . . . . . . 5 30 10 . 3 Heat Flow Errors 29 | . . 2 . . . . . . . . . 1 . . 2 . . 1 . 1 . . . . . . . 5 13 4 . . Energy Discharges 51 | . . 4 . 1 . . . . . . 1 2 . 7 2 . 1 1 1 2 . . . . . . . 5 18 5 1 . Parts Rejected 5 | . . . . . . . . . . . . . . . 1 . . . . 2 . . . . . . . 1 1 . . . Data Loss (minor) 52 | . . 4 . 2 1 . . . . . . 4 4 5 3 . . . 1 1 . . . . . . . 5 17 2 . 3 Data Loss (major) 6 | . . . . . . . . . . . . . . . . . . . . 2 . . . . . . . . 3 . . 1 Misfires 10 | . . . . . . . . . . . . . . . . . . . . 1 . . . . . . . 1 7 1 . . Alerts 7 | . . . . . . . . . . . . . . . . . . . . . . . . . . . . 1 4 2 . . Misdirections 56 | . . . . . . . . . . . . . . . . . . . . 1 . . . . . . . 4 44 1 . 6 Targeting Errors 157 | . . . . . . . . . . . 1 1 1 1 6 . . 1 1 3 . . . . . . . 22 111 . 3 6 Weapon Failures 31 | . . . . 1 . . . . . . . . . . . . . . 1 2 . . . . . . . 3 22 . 2 . Overload Shots 1 | . . . . . . . . . . . . . . . . . . . . . . . . . . 1 . . . . . . Overflow Damage 691 | . . . 83 11 . 1 . 2 39 21 50 97 . 92 1 86 . . . 31 . . . . . . 23 88 14 . 16 36 Projectiles 212 | . . . . 11 . 1 . 2 38 . 50 97 . . 1 3 . . . . . . . . . . . 9 . . . . Explosions 346 | . . . 83 . . . . . 1 21 . . . . . 83 . . . 31 . . . . . . 23 79 9 . 16 . Melee 133 | . . . . . . . . . . . . . . 92 . . . . . . . . . . . . . . 5 . . 36 Knockbacks 4 | . . . . . . . 1 . . . . . . . . . . . . . . . . . . . . 1 2 . . . Impact 3 | . . . . . . . 1 . . . . . . . . . . . . . . . . . . . . 1 1 . . . Kinetic 1 | . . . . . . . . . . . . . . . . . . . . . . . . . . . . . 1 . . . Secondary . | . . . . . . . . . . . . . . . . . . . . . . . . . . . . . . . . . Self-Inflicted Damage 634 | . . . . . . . . 27 . . . . . . 42 131 45 54 . 196 . . . . . . . 75 49 . 4 11 Shots 16 | . . . . . . . . 1 . . . . . . 3 2 1 1 . 6 . . . . . . . 1 1 . . . Rammed 36 | . 9 . . . . . 1 . 1 . . . . . . . . . . 1 . . 2 . . . . 13 1 . 1 7 Targets Rammed 39 | . 11 . . . . . 1 . 1 . . . . . . . . . . 1 . . 2 . . . . 14 1 . 1 7 Kicked . | . . . . . . . . . . . . . . . . . . . . . . . . . . . . . . . . . Crushed 3 | . 2 . . . . . . . . . . . . . . . . . . . . . . . . . . 1 . . . . Highest Temperature 488 | . 30 252 394 345 . 376 136 385 290 346 309 240 260 2 206 249 233 316 361 186 24 304 165 330 . 297 388 488 362 225 404 199 Average Temperature 115 | . 13 91 104 92 . 147 51 138 95 154 94 85 94 1 58 66 68 128 124 52 15 169 84 89 . 58 147 157 142 91 128 104 Received Heat Transfer 3210 | . 246 150 210 63 . . 27 315 306 192 18 . 36 114 129 45 286 44 . 126 . . . . . . 57 369 276 . 48 153 Effects 32 | . . . 7 . . 1 . 1 1 1 . . 1 . . . . 1 1 . . . . 1 . . . 9 5 . 3 . Shutdowns 1 | . . . . . . . . . . . . . . . . . . . . . . . . . . . . 1 . . . . Energy Bleed 11 | . . . . . . 1 . 1 1 . . . 1 . . . . . . . . . . 1 . . . 2 3 . 1 . Interference 10 | . . . 5 . . . . . . . . . . . . . . 1 . . . . . . . . . 4 . . . . Matter Decay 2 | . . . . . . . . . . . . . . . . . . . . . . . . . . . . 1 . . 1 . Short Circuit 7 | . . . 2 . . . . . . 1 . . . . . . . . 1 . . . . . . . . . 2 . 1 . Damage (minor) 1 | . . . . . . . . . . . . . . . . . . . . . . . . . . . . 1 . . . . Siege Activations 31 | . . . . . . . . . . . . . . . . . . . 2 3 . . . . . 2 . 5 7 . 9 3 Total Turns 569 | . . . . . . . . . . . . . . . . . . . 14 31 . . . . . 150 . 110 126 . 94 44 Longest Duration 100 | . . . . . . . . . . . . . . . . . . . 9 12 . . . . . 100 . 51 30 . 36 36 Robots Corrupted 4 | . . . . . . . . . . . . . . . 1 1 . . . . . . . . . . . . 2 . . . Combat Hostiles 4 | . . . . . . . . . . . . . . . 1 1 . . . . . . . . . . . . 2 . . . Parts Fried 12 | . . . . . . . . . . . . . . . 4 3 . . . 2 . . . . . . . 1 2 . . . Impact Corruptions 1 | . . . . . . . . . . . . . . . . . . . . . . . . . . . . . 1 . . . Robots Melted . | . . . . . . . . . . . . . . . . . . . . . . . . . . . . . . . . . Combat Hostiles . | . . . . . . . . . . . . . . . . . . . . . . . . . . . . . . . . . Parts Melted 27 | . . . 3 1 . 1 . 2 9 . 3 . . . . 3 2 . . . . . . . . . . 3 . . . . Heat Transferred 14735 | . 111 629 1815 407 . 370 296 814 2516 333 518 555 259 . 333 361 987 524 407 . 74 296 148 259 . 21 444 2258 . . . . Parts Sabotaged 2 | . . . . . . . . . . . . . . . . . . . . . . . . . . . . . 2 . . . Parts Stolen . | . . . . . . . . . . . . . . . . . . . . . . . . . . . . . . . . . Parts Stripped . | . . . . . . . . . . . . . . . . . . . . . . . . . . . . . . . . . Power Chain Reactions 2 | . . . . . . . . . . . . . . . . . . 1 . . . . . . . . . . 1 . . . Missiles Intercepted 1 | . . . . . . . . . . . . . . . . . . . . . . . . . . . . . . . 1 . Alert | -11 -10 -10 -9 -9 -9 -8 -8 -8 -8 -8 -7 -7 -7 -7 -6 -6 -6 -6 -6 -6 -5 -5 -5 -5 -5 -5 -4 -4 -4 -4 -3 -2 ------- Run | Scr Mat Min Mat Min Exi Min Mat Gar Mat Gar Fac Low Low Dat Pro Fac Ext Cet Arc Hub Fac Was Fac Upp Upp Zhi Pro Fac Arm Lab Res Res Peak Influence 928 | 5 267 47 449 184 . 172 130 426 429 369 224 . . . . 192 349 540 545 548 240 15 147 . . . . 678 927 . 791 928 Initial 411 | . 3 42 7 174 . . . 84 207 137 193 . . . . . 93 . 216 28 210 15 . . . . . 51 291 . . 411 Average 231 | 2 104 16 251 90 . 126 57 291 240 211 113 . . . . 81 128 268 316 324 190 10 64 . . . . 319 460 . 220 509 Maximum Alert Level 3 | . 1 . 2 . . . . 2 2 1 1 . . . . . 1 2 2 2 1 . . . . . . 2 3 . 3 3 Low Security (%) 54 | 100 84 100 26 100 . 100 100 22 29 54 90 . . . . 100 77 47 39 23 21 100 100 . . . . 25 23 . 58 . Level 1 26 | . 15 . 62 . . . . 65 68 45 9 . . . . . 22 27 34 28 78 . . . . . . 51 23 . 21 20 Level 2 14 | . . . 11 . . . . 11 1 . . . . . . . . 25 25 47 . . . . . . . 23 27 . 17 59 Level 3 3 | . . . . . . . . . . . . . . . . . . . . . . . . . . . . . 25 . 2 19 Level 4 . | . . . . . . . . . . . . . . . . . . . . . . . . . . . . . . . . . Level 5 . | . . . . . . . . . . . . . . . . . . . . . . . . . . . . . . . . . High Security . | . . . . . . . . . . . . . . . . . . . . . . . . . . . . . . . . . Max Security . | . . . . . . . . . . . . . . . . . . . . . . . . . . . . . . . . . Squads Dispatched 53 | . 3 . 3 . . . 1 . 3 . 3 . . . . 1 1 . . 5 . . 1 . . . 1 3 11 . 7 10 Investigation 18 | . 2 . 3 . . . . . 2 . 1 . . . . . 1 . . 1 . . 1 . . . . . 2 . 4 1 Extermination 16 | . . . . . . . . . . . 2 . . . . 1 . . . 1 . . . . . . . 2 7 . . 3 Reinforcement 11 | . 1 . . . . . . . 1 . . . . . . . . . . 3 . . . . . . . . 1 . 3 2 Assault 4 | . . . . . . . . . . . . . . . . . . . . . . . . . . . 1 1 1 . . 1 Garrison 4 | . . . . . . . 1 . . . . . . . . . . . . . . . . . . . . . . . . 3 Intercept . | . . . . . . . . . . . . . . . . . . . . . . . . . . . . . . . . . Construction Impeded 3 | . . . . . . . . . . . . . . . . . . . . 2 . . . . . . . . . . . 1 Haulers Reinforced 1 | . . . . . . . . . . . . . . . . . . . . 1 . . . . . . . . . . . . Stealth | -11 -10 -10 -9 -9 -9 -8 -8 -8 -8 -8 -7 -7 -7 -7 -6 -6 -6 -6 -6 -6 -5 -5 -5 -5 -5 -5 -4 -4 -4 -4 -3 -2 --------- Run | Scr Mat Min Mat Min Exi Min Mat Gar Mat Gar Fac Low Low Dat Pro Fac Ext Cet Arc Hub Fac Was Fac Upp Upp Zhi Pro Fac Arm Lab Res Res Distress Signals 22 | . . . 2 . . . 2 . 2 . . . . . . . . 2 . 3 . . . . . . . 1 . . 5 5 Communications Jammed 119 | . . . . . . . . . . . . . . . . . 12 . . . . . . . . . . 107 . . . . Distress Signals 119 | . . . . . . . . . . . . . . . . . 12 . . . . . . . . . . 107 . . . . Times Spotted 462 | . 19 5 28 3 . 9 4 12 31 9 8 1 4 4 6 6 18 17 18 17 1 . 2 6 2 3 9 54 46 . 58 62 Peak Tracking Total 20 | . 7 2 6 3 . 3 2 6 4 3 4 1 4 3 5 3 4 5 1 8 1 . 1 5 2 3 5 10 6 . 6 20 Tactical Retreats 30 | . . . . 1 . . . 5 1 4 . . . . 1 1 . . . . . . . . . . 3 5 3 . 2 4 Traps | -11 -10 -10 -9 -9 -9 -8 -8 -8 -8 -8 -7 -7 -7 -7 -6 -6 -6 -6 -6 -6 -5 -5 -5 -5 -5 -5 -4 -4 -4 -4 -3 -2 ------- Run | Scr Mat Min Mat Min Exi Min Mat Gar Mat Gar Fac Low Low Dat Pro Fac Ext Cet Arc Hub Fac Was Fac Upp Upp Zhi Pro Fac Arm Lab Res Res Traps Triggered 28 | . 1 . . . . . . 5 . 5 . . . . . . 7 . . 1 1 . . . . . . 1 2 . 4 1 Indirectly . | . . . . . . . . . . . . . . . . . . . . . . . . . . . . . . . . . Trap Hack Attempts . | . . . . . . . . . . . . . . . . . . . . . . . . . . . . . . . . . Triggered . | . . . . . . . . . . . . . . . . . . . . . . . . . . . . . . . . . Disarmed . | . . . . . . . . . . . . . . . . . . . . . . . . . . . . . . . . . Reprogrammed . | . . . . . . . . . . . . . . . . . . . . . . . . . . . . . . . . . Reused 1 | . . . . . . . . . . . . . . 1 . . . . . . . . . . . . . . . . . . Traps Extracted . | . . . . . . . . . . . . . . . . . . . . . . . . . . . . . . . . . Installed 16 | . . . . 4 . . . . . . . . . 7 . . . . . . . . . . . 5 . . . . . . Triggered 6 | . . . . . . . . . . . . . . . . . . . . . . . . 2 . . 4 . . . . . Machines | -11 -10 -10 -9 -9 -9 -8 -8 -8 -8 -8 -7 -7 -7 -7 -6 -6 -6 -6 -6 -6 -5 -5 -5 -5 -5 -5 -4 -4 -4 -4 -3 -2 ---------- Run | Scr Mat Min Mat Min Exi Min Mat Gar Mat Gar Fac Low Low Dat Pro Fac Ext Cet Arc Hub Fac Was Fac Upp Upp Zhi Pro Fac Arm Lab Res Res Machines Disabled 49 | . . . 3 . . . . 1 2 2 . . . 1 . 4 . . 6 15 . . . . . 1 1 6 6 . . 1 Max in Single Turn 11 | . . . 1 . . . . 1 1 1 . . . 1 . 4 . . 1 11 . . . . . . 1 1 1 . . 1 Garrison Access 6 | . . . . . . . . . . . . . . . . . . . . 1 1 . . . . . . 1 . . 3 . Garrison Relay 2 | . . . . . . . . 1 . 1 . . . . . . . . . . . . . . . . . . . . . . Network Hub 1 | . . . . . . . . . . . . . . . . . . . . 1 . . . . . . . . . . . . Machines Sabotaged . | . . . . . . . . . . . . . . . . . . . . . . . . . . . . . . . . . Garrisons Compromised . | . . . . . . . . . . . . . . . . . . . . . . . . . . . . . . . . . Overloaded Fab Kills . | . . . . . . . . . . . . . . . . . . . . . . . . . . . . . . . . . Fab Network Shutdowns 1 | . . . . . . . . . . . . . . . . . . . . . . . . . . . . . 1 . . . Hacking | -11 -10 -10 -9 -9 -9 -8 -8 -8 -8 -8 -7 -7 -7 -7 -6 -6 -6 -6 -6 -6 -5 -5 -5 -5 -5 -5 -4 -4 -4 -4 -3 -2 --------- Run | Scr Mat Min Mat Min Exi Min Mat Gar Mat Gar Fac Low Low Dat Pro Fac Ext Cet Arc Hub Fac Was Fac Upp Upp Zhi Pro Fac Arm Lab Res Res Machines Accessed 75 | . 2 . 3 . 1 . 1 . 11 . 2 . 1 4 . 2 9 1 . 6 2 . 3 1 . 4 . 7 5 . 8 2 Terminals 40 | . 1 . 2 . . . . . 7 . 1 . . . . 2 9 1 . 5 1 . 1 1 . . . 4 2 . 2 1 Fabricators 6 | . . . . . . . . . . . . . . . . . . . . . . . 1 . . . . 1 2 . 1 1 Repair Stations 4 | . . . . . . . . . . . . . . . . . . . . . . . 1 . . . . 1 1 . 1 . Recycling Units 4 | . 1 . 1 . . . . . 1 . 1 . . . . . . . . . . . . . . . . . . . . . Scanalyzers 4 | . . . . . . . . . 2 . . . . . . . . . . . . . . . . . . 1 . . 1 . Garrison Access 7 | . . . . . . . 1 . 1 . . . . . . . . . . 1 1 . . . . . . . . . 3 . Total Hacks 291 | . 4 . 7 . 1 . 1 . 28 . 6 . 1 30 . 3 20 5 . 13 7 . 27 1 . 17 . 42 46 . 22 10 Successful 186 | . 2 . 1 . 1 . 1 . 20 . 3 . 1 30 . 2 11 1 . 6 4 . 13 1 . 17 . 25 31 . 13 3 Failed 104 | . 2 . 6 . . . . . 8 . 3 . . . . 1 9 4 . 7 3 . 13 . . . . 17 15 . 9 7 Catastrophic 10 | . 1 . . . . . . . 1 . 1 . . . . . 1 . . 3 1 . . . . . . 1 1 . . . Database Lockouts 1 | . . . . . . . . . . . . . . . . . . . . . . . 1 . . . . . . . . . Manual 89 | . 4 . 4 . . . . . 9 . 4 . . . . 2 9 1 . 5 6 . 14 . . . . 18 8 . 3 2 Terminals 137 | . 3 . 6 . . . . . 20 . 4 . . . . 3 20 5 . 12 6 . 16 1 . . . 22 7 . 7 5 Fabricators 56 | . . . . . . . . . . . . . . . . . . . . . . . 7 . . . . 5 36 . 3 5 Repair Stations 22 | . . . . . . . . . . . . . . . . . . . . . . . 4 . . . . 9 3 . 6 . Recycling Units 5 | . 1 . 1 . . . . . 1 . 2 . . . . . . . . . . . . . . . . . . . . . Scanalyzers 15 | . . . . . . . . . 6 . . . . . . . . . . . . . . . . . . 6 . . 3 . Garrison Access 7 | . . . . . . . 1 . 1 . . . . . . . . . . 1 1 . . . . . . . . . 3 . Terminal Hacks 99 | . . . . . 1 . . . 12 . 1 . 1 30 . 2 8 1 . 4 1 . 6 1 . 17 . 9 1 . 4 . Record 19 | . . . . . 1 . . . . . . . . 11 . . . . . . . . 1 1 . 5 . . . . . . Part Schematic 22 | . . . . . . . . . . . . . . 10 . 1 . . . . . . 2 . . 4 . 4 . . 1 . Robot Schematic 6 | . . . . . . . . . . . . . . 6 . . . . . . . . . . . . . . . . . . Robot Analysis 6 | . . . . . . . . . 1 . . . . . . . . . . . . . . . . 4 . . . . 1 . Prototype ID Bank 9 | . . . . . . . . . 1 . . . . 3 . . 1 . . . . . . . . 4 . . . . . . Open Door 6 | . . . . . . . . . . . . . 1 . . . 4 1 . . . . . . . . . . . . . . Branch Access Points 6 | . . . . . . . . . 1 . 1 . . . . 1 . . . . 1 . 1 . . . . 1 . . . . Terminal Index 2 | . . . . . . . . . . . . . . . . . . . . 1 . . . . . . . . . . 1 . Fabricator Index 2 | . . . . . . . . . . . . . . . . . . . . . . . 1 . . . . 1 . . . . Garrison Index 2 | . . . . . . . . . 1 . . . . . . . . . . 1 . . . . . . . . . . . . Alert Level 1 | . . . . . . . . . 1 . . . . . . . . . . . . . . . . . . . . . . . Unreport Threat 10 | . . . . . . . . . 4 . . . . . . . 2 . . 1 . . . . . . . 2 1 . . . Locate Traps 1 | . . . . . . . . . . . . . . . . . 1 . . . . . . . . . . . . . . . Registered Components 1 | . . . . . . . . . . . . . . . . . . . . . . . . . . . . 1 . . . . Zone Layout 6 | . . . . . . . . . 3 . . . . . . . . . . 1 . . 1 . . . . . . . 1 . Fabricator Hacks 34 | . . . . . . . . . . . . . . . . . . . . . . . 4 . . . . 2 24 . 1 3 Load Schematic 12 | . . . . . . . . . . . . . . . . . . . . . . . 2 . . . . 1 7 . 1 1 Build 22 | . . . . . . . . . . . . . . . . . . . . . . . 2 . . . . 1 17 . . 2 Repair Station Hacks 10 | . . . . . . . . . . . . . . . . . . . . . . . 2 . . . . 5 1 . 2 . Scan Component 6 | . . . . . . . . . . . . . . . . . . . . . . . 1 . . . . 3 1 . 1 . Repair 4 | . . . . . . . . . . . . . . . . . . . . . . . 1 . . . . 2 . . 1 . Recycling Unit Hacks 1 | . . . . . . . . . . . 1 . . . . . . . . . . . . . . . . . . . . . Report Inventory 1 | . . . . . . . . . . . 1 . . . . . . . . . . . . . . . . . . . . . Scanalyzer 11 | . . . . . . . . . 5 . . . . . . . . . . . . . . . . . . 5 . . 1 . Insert Component 7 | . . . . . . . . . 3 . . . . . . . . . . . . . . . . . . 3 . . 1 . Analyze 4 | . . . . . . . . . 2 . . . . . . . . . . . . . . . . . . 2 . . . . Garrison Access Hacks 7 | . . . . . . . 1 . 1 . . . . . . . . . . 1 1 . . . . . . . . . 3 . Unlock Access 2 | . . . . . . . 1 . 1 . . . . . . . . . . . . . . . . . . . . . . . Seal Access 5 | . . . . . . . . . . . . . . . . . . . . 1 1 . . . . . . . . . 3 . Unauthorized Hacks 24 | . 2 . 1 . . . . . 2 . 1 . . . . . 3 . . 1 2 . 1 . . . . 4 5 . 2 . Terminals 14 | . 1 . . . . . . . 1 . 1 . . . . . 3 . . 1 2 . . . . . . 2 1 . 2 . Assimilate 1 | . . . . . . . . . . . . . . . . . . . . . 1 . . . . . . . . . . . Botnet 12 | . 1 . . . . . . . 1 . 1 . . . . . 2 . . 1 1 . . . . . . 2 1 . 2 . Operators 1 | . . . . . . . . . . . . . . . . . 1 . . . . . . . . . . . . . . . Fabricators 7 | . . . . . . . . . . . . . . . . . . . . . . . 1 . . . . 2 4 . . . Prioritize 4 | . . . . . . . . . . . . . . . . . . . . . . . 1 . . . . 1 2 . . . Siphon 3 | . . . . . . . . . . . . . . . . . . . . . . . . . . . . 1 2 . . . Repair Stations . | . . . . . . . . . . . . . . . . . . . . . . . . . . . . . . . . . Recycling Units 3 | . 1 . 1 . . . . . 1 . . . . . . . . . . . . . . . . . . . . . . . Tunnel 3 | . 1 . 1 . . . . . 1 . . . . . . . . . . . . . . . . . . . . . . . Scanalyzers . | . . . . . . . . . . . . . . . . . . . . . . . . . . . . . . . . . Garrison Access . | . . . . . . . . . . . . . . . . . . . . . . . . . . . . . . . . . Data Cores Recovered 2 | . . . . . . . . . 1 . . . . . . . . . . . . . . . . . . 1 . . . . Used . | . . . . . . . . . . . . . . . . . . . . . . . . . . . . . . . . . Hacking Detections 45 | . 1 . 2 . . . . . 8 . 1 . . . . 1 7 1 . 5 1 . 3 . . . . 5 4 . 4 2 Full Trace Events 10 | . 1 . 2 . . . . . 1 . 1 . . . . . 1 . . 1 . . 1 . . . . . 1 . . 1 Feedback Events 1 | . . . 1 . . . . . . . . . . . . . . . . . . . . . . . . . . . . . Corruption 1 | . . . 1 . . . . . . . . . . . . . . . . . . . . . . . . . . . . . Feedback Blocked . | . . . . . . . . . . . . . . . . . . . . . . . . . . . . . . . . . Robot Schematics Acquired 6 | . . . . . . . . . . . . . . 6 . . . . . . . . . . . . . . . . . . Robots Built 1 | . . . . . . . . . . . . . . . . . . . . . . . 1 . . . . . . . . . Matter 252 | . . . . . . . . . . . . . . . . . . . . . . . 252 . . . . . . . . . Time 33 | . . . . . . . . . . . . . . . . . . . . . . . 33 . . . . . . . . . Total Robot Build Rating 4 | . . . . . . . . . . . . . . . . . . . . . . . 4 . . . . . . . . . Part Schematics Acquired 26 | . . . . . . . . . 2 . . . . 10 . 1 . . . . . . 2 . . 4 . 6 . . 1 . Parts Built 21 | . . . . . . . . . . . . . . . . . . . . . . . 1 . . . . . 18 . . 2 Matter 3819 | . . . . . . . . . . . . . . . . . . . . . . . 212 . . . . 285 2884 . . 438 Time 1331 | . . . . . . . . . . . . . . . . . . . . . . . 53 . . . . 152 1050 . . 76 Total Part Build Rating 79 | . . . . . . . . . . . . . . . . . . . . . . . 6 . . . . . 67 . . 6 Parts Repaired 4 | . . . . . . . . . . . . . . . . . . . . . . . 1 . . . . 2 . . 1 . Time 185 | . . . . . . . . . . . . . . . . . . . . . . . 43 . . . . 122 . . 20 . Parts Recycled . | . . . . . . . . . . . . . . . . . . . . . . . . . . . . . . . . . Recycled Matter . | . . . . . . . . . . . . . . . . . . . . . . . . . . . . . . . . . Retrieved Matter . | . . . . . . . . . . . . . . . . . . . . . . . . . . . . . . . . . Retrieved Components . | . . . . . . . . . . . . . . . . . . . . . . . . . . . . . . . . . Parts Scanalyzed 5 | . . . . . . . . . 2 . . . . . . . . . . . . . . . . . . 2 . . 1 . Part Schematics Acquired 4 | . . . . . . . . . 2 . . . . . . . . . . . . . . . . . . 2 . . . . Parts Damaged . | . . . . . . . . . . . . . . . . . . . . . . . . . . . . . . . . . Bothacking | -11 -10 -10 -9 -9 -9 -8 -8 -8 -8 -8 -7 -7 -7 -7 -6 -6 -6 -6 -6 -6 -5 -5 -5 -5 -5 -5 -4 -4 -4 -4 -3 -2 ------------ Run | Scr Mat Min Mat Min Exi Min Mat Gar Mat Gar Fac Low Low Dat Pro Fac Ext Cet Arc Hub Fac Was Fac Upp Upp Zhi Pro Fac Arm Lab Res Res Used RIF Installer 2 | . . . . . . . . 1 . 1 . . . . . . . . . . . . . . . . . . . . . . Structural Interface 1 | . . . . . . . . . . 1 . . . . . . . . . . . . . . . . . . . . . . Robots Hacked 6 | . . . . . . . . . . . . . . . . . . . . . . . . . . 3 . 1 . . 2 . Non-combat 1 | . . . . . . . . . . . . . . . . . . . . . . . . . . . . 1 . . . . Combat 5 | . . . . . . . . . . . . . . . . . . . . . . . . . . 3 . . . . 2 . Robot Hacks Applied 6 | . . . . . . . . . . . . . . . . . . . . . . . . . . 3 . 1 . . 2 . parse_system 6 | . . . . . . . . . . . . . . . . . . . . . . . . . . 3 . 1 . . 2 . Relay Couplers Released 15 | . . . . . . . . 4 . 4 . . . . . . . . . . . . . . . . . 3 . . 4 . Machine Destruction 11 | . . . . . . . . 4 . 4 . . . . . . . . . . . . . . . . . 3 . . . . Programmers 4 | . . . . . . . . . . . . . . . . . . . . . . . . . . . . . . . 4 . Robots Rewired 14 | . . . . . . . . . . . . . . . . . 12 . . . . . . . . . 1 . 1 . . . Allies Hacked . | . . . . . . . . . . . . . . . . . . . . . . . . . . . . . . . . . Hacks Repelled . | . . . . . . . . . . . . . . . . . . . . . . . . . . . . . . . . . Allies | -11 -10 -10 -9 -9 -9 -8 -8 -8 -8 -8 -7 -7 -7 -7 -6 -6 -6 -6 -6 -6 -5 -5 -5 -5 -5 -5 -4 -4 -4 -4 -3 -2 -------- Run | Scr Mat Min Mat Min Exi Min Mat Gar Mat Gar Fac Low Low Dat Pro Fac Ext Cet Arc Hub Fac Was Fac Upp Upp Zhi Pro Fac Arm Lab Res Res Total Allies 54 | . . 1 . 3 . . . . . . . . . . . . 18 5 . . 1 20 1 . . . 1 . 4 . . . Largest Group 21 | . . 1 . 3 3 3 . . . . . . . . . . 10 9 7 4 1 21 21 21 17 15 1 1 3 . . . Highest-Rated Group 803 | . . 31 . 40 40 40 . . . . . . . . . . 421 700 646 371 26 802 803 803 695 607 50 47 207 . . . Highest-Rated Ally 156 | . . 31 . 16 16 16 . . . . . . . . . . 156 156 156 94 26 50 50 50 50 50 50 47 115 . . . Total Orders 5 | . . . . . . . . . . . . . . . . . . . . . . . . . . 2 . . . . 3 . STAY 2 | . . . . . . . . . . . . . . . . . . . . . . . . . . 2 . . . . . . EXPLORE 3 | . . . . . . . . . . . . . . . . . . . . . . . . . . . . . . . 3 . Ally Attacks 353 | . . . . 19 . 12 . . . . . . . . . . 48 86 18 27 . . 35 26 20 32 4 4 22 . . . Total Damage 9805 | . . . . 218 . 65 . . . . . . . . . . 1100 2203 676 931 . . 707 1028 660 908 434 58 817 . . . Kills 68 | . . . . 3 . 3 . . . . . . . . . . 14 16 3 8 . . 3 8 3 1 3 . 3 . . . Allies Corrupted 5 | . . . . . . . . . . . . . . . . . 3 . . . . . . . . . . . 2 . . . Allies Melted . | . . . . . . . . . . . . . . . . . . . . . . . . . . . . . . . . . Intel | -11 -10 -10 -9 -9 -9 -8 -8 -8 -8 -8 -7 -7 -7 -7 -6 -6 -6 -6 -6 -6 -5 -5 -5 -5 -5 -5 -4 -4 -4 -4 -3 -2 ------- Run | Scr Mat Min Mat Min Exi Min Mat Gar Mat Gar Fac Low Low Dat Pro Fac Ext Cet Arc Hub Fac Was Fac Upp Upp Zhi Pro Fac Arm Lab Res Res Robot Analysis Total 6 | . . . . . . . . . 1 . . . . . . . . . . . . . . . . 4 . . . . 1 . Derelict Logs Recovered 10 | . . 1 . 2 . . . . . . . 1 2 . . . . . . . . . . 1 2 . 1 . . . . . Drone Launches 4 | . . . . . . . . . . . . . . . . . . . . . . . . . . . . . . . 4 . Drone Recoveries 1 | . . . . . . . . . . . . . . . . . . . . . . . . . . . . . . . 1 . Exploration | -11 -10 -10 -9 -9 -9 -8 -8 -8 -8 -8 -7 -7 -7 -7 -6 -6 -6 -6 -6 -6 -5 -5 -5 -5 -5 -5 -4 -4 -4 -4 -3 -2 ------------- Run | Scr Mat Min Mat Min Exi Min Mat Gar Mat Gar Fac Low Low Dat Pro Fac Ext Cet Arc Hub Fac Was Fac Upp Upp Zhi Pro Fac Arm Lab Res Res Turns Passed 34903 | 112 612 1458 766 1076 369 454 191 627 1292 920 917 851 810 1290 1131 694 1262 387 1326 1042 508 556 634 1213 1124 1231 763 1703 2559 629 5366 1030 Spaces Moved 15225 | 56 231 669 293 566 189 205 86 280 478 396 429 385 415 622 496 314 479 164 210 488 277 286 286 576 683 580 405 616 1089 16 2438 522 Core 168 | 10 . . . . . . . . . . . . . 2 . . . . . . . . . . . . . . . . . 156 Treads 13857 | 46 231 669 293 566 189 205 86 280 478 396 429 385 415 223 184 48 424 164 210 488 277 286 286 576 683 580 405 616 1089 16 2336 298 Legs 1098 | . . . . . . . . . . . . . . 397 312 266 55 . . . . . . . . . . . . . . 68 Wheels 102 | . . . . . . . . . . . . . . . . . . . . . . . . . . . . . . . 102 . Hover . | . . . . . . . . . . . . . . . . . . . . . . . . . . . . . . . . . Flight . | . . . . . . . . . . . . . . . . . . . . . . . . . . . . . . . . . Fastest Speed 50 | 50 160 160 180 180 180 180 180 180 180 205 180 180 182 120 150 150 160 160 160 160 160 180 160 160 160 160 160 160 160 200 161 50 Average Speed 175 | 147 184 179 180 180 191 195 180 180 201 206 181 196 182 170 195 168 173 160 160 160 170 180 174 160 160 160 160 161 173 200 186 134 Slowest Speed 250 | 160 200 180 200 180 200 200 180 180 205 250 183 200 182 240 240 200 200 180 160 180 180 180 180 160 160 160 160 200 200 200 230 185 Overloaded Moves . | . . . . . . . . . . . . . . . . . . . . . . . . . . . . . . . . . Propulsion Burnouts . | . . . . . . . . . . . . . . . . . . . . . . . . . . . . . . . . . Robots Hopped 2 | . . . . . . . . . . . . . . . . . . . . . . . . . . . . . . . 2 . Cave-ins Triggered . | . . . . . . . . . . . . . . . . . . . . . . . . . . . . . . . . . Teleports 1 | . . . . . . . . . . . . . . . . . . . . . . . . . . . . . 1 . . . Exploration Rate (%) 50 | 4 47 99 29 91 54 58 14 55 52 61 13 57 59 80 67 7 61 64 79 47 8 97 6 58 78 98 56 20 41 5 71 15 Regions Visited 32 Branch Regions 18 Pre-discovered Areas 9 | . 1 . 1 1 1 . . . 1 . . . . 1 . . . . . . . . . . . 3 . . . . . . Known Exits Taken 22 | . . . 1 . . . 1 . 1 . 1 1 1 1 1 1 1 1 1 1 . . 1 1 1 1 1 1 1 1 1 . Unknown Exits Taken 6 | 1 1 1 . 1 1 1 . . . . . . . . . . . . . . . . . . . . . . . . . . Scrap Searched 25 | . . 2 . 2 . . . . . . . 3 3 . 5 . . . . . . . . 4 4 . 2 . . . . . Spaces Dug 85 | . . . . . . . . . . . 2 4 . . 1 8 1 . 1 9 2 . . 5 . . . 6 1 . 39 6 Terrain Destroyed 823 | . . . 29 . . . . 8 58 2 35 11 20 . 3 37 38 3 16 265 2 . . 6 . 1 27 66 73 . 115 8 Melee 6 | . . . . . . . . . . . . . . . . . . . . . . . . . . . . . . . . 6 Projectile 189 | . . . . . . . . . 17 . 10 11 5 . 3 8 15 2 16 25 2 . . 6 . 1 9 38 2 . 17 2 AOE 628 | . . . 29 . . . . 8 41 2 25 . 15 . . 29 23 1 . 240 . . . . . . 18 28 71 . 98 . Terrain Rammed . | . . . . . . . . . . . . . . . . . . . . . . . . . . . . . . . . . Walls Destroyed . | . . . . . . . . . . . . . . . . . . . . . . . . . . . . . . . . . Machines Disabled . | . . . . . . . . . . . . . . . . . . . . . . . . . . . . . . . . . Actions | -11 -10 -10 -9 -9 -9 -8 -8 -8 -8 -8 -7 -7 -7 -7 -6 -6 -6 -6 -6 -6 -5 -5 -5 -5 -5 -5 -4 -4 -4 -4 -3 -2 --------- Run | Scr Mat Min Mat Min Exi Min Mat Gar Mat Gar Fac Low Low Dat Pro Fac Ext Cet Arc Hub Fac Was Fac Upp Upp Zhi Pro Fac Arm Lab Res Res Total 21626 | 81 320 899 421 602 196 229 103 360 663 480 529 445 449 800 620 440 839 272 1159 642 306 318 410 846 714 834 491 1049 1560 613 3182 754 Wait 4038 | 13 15 196 42 21 4 8 4 27 56 40 48 11 18 58 79 71 148 62 910 78 2 15 106 240 30 173 56 177 253 598 405 74 Move 15190 | 55 230 668 292 565 188 204 85 279 478 394 428 384 414 621 495 313 478 163 209 487 277 285 285 575 682 579 404 615 1088 15 2433 522 Hop 2 | . . . . . . . . . . . . . . . . . . . . . . . . . . . . . . . 2 . Pick Up 291 | 6 9 8 9 1 1 1 2 8 9 7 9 17 2 27 8 5 9 8 2 2 6 4 7 5 . 6 1 18 44 . 37 13 Fast Attach 196 | 6 4 2 5 . . . 1 1 15 1 4 3 . 6 8 2 6 6 5 8 2 6 3 3 1 5 . 22 17 . 42 12 Attach 123 | . 2 . 6 . . 1 2 6 2 5 4 2 . 9 3 5 7 1 . 4 7 . . . . 1 1 10 8 . 26 11 Detach 24 | . . . 1 . . . . . . . . 1 . 2 . 1 . . . 1 3 . . . . 2 . 4 5 . 3 1 Swap 169 | . 1 2 2 . 2 1 . . 5 2 8 3 4 2 4 9 18 5 2 7 1 . 1 . . 3 6 14 22 . 41 4 Drop 327 | . 2 8 10 1 1 . . 3 24 6 8 7 1 33 4 4 20 15 7 5 . 4 3 6 1 9 . 28 33 . 66 18 Fire 1001 | 1 46 15 54 10 . 14 8 26 73 15 19 17 10 . 19 30 40 12 24 49 8 4 3 17 . 51 15 147 87 . 124 63 Melee 66 | . . . . . . . . . . 2 1 . . 34 . . . . . . . . . . . . . . . . . 29 Ram 5 | . . . . . . . . . . . . . . . . . . . . . . . . . . . . . . . 1 4 Kick . | . . . . . . . . . . . . . . . . . . . . . . . . . . . . . . . . . Crush 34 | . 11 . . . . . 1 . 1 . . . . . . . . . . 1 . . 2 . . . . 14 1 . . 3 Escape Stasis 34 | . . . . . . . . 10 . 8 . . . . . . 14 . . . . . . . . . . . . . 2 . Rewire 110 | . . . . . . . . . . . . . . 1 . . 99 . . . . . . . . . 8 . 2 . . . Trap 16 | . . . . 4 . . . . . . . . . 7 . . . . . . . . . . . 5 . . . . . . Miscellaneous . | . . . . . . . . . . . . . . . . . . . . . . . . . . . . . . . . . Route ------- -11/Scrapyard -10/Materials (discovered 3 exits: *Mat / [*Min x2]) -10/Mines (discovered 2 exits: *Mat x2) -9/Materials -9/Mines (discovered 3 exits: *Mat x2 / *Exi) -9/Exiles -8/Mines -8/Materials -8/Garrison (discovered 2 exits: *Mat x2) -8/Materials (discovered 3 exits: *Fac x2 / Gar) -8/Garrison -7/Factory (discovered 3 exits: Sto / *Low x2) -7/Lower Caves -7/Lower Caves (discovered 2 exits: *Fac / *Dat) -7/Data Miner -6/Proximity Caves -6/Factory (discovered 4 exits: Low x2 / *Ext x2) -6/Extension (discovered 2 exits: *Fac / *Cet) -6/Cetus (discovered 2 exits: *Fac / *Arc) -6/Archives (discovered 2 exits: *Fac / *Hub) -6/Hub_04(d) (discovered 2 exits: *Fac x2) -5/Factory (discovered 2 exits: Upp x2) -5/Waste -5/Factory (discovered 2 exits: *Upp x2) -5/Upper Caves -5/Upper Caves -5/Zhirov -4/Proximity Caves -4/Factory (discovered 3 exits: *Upp x2 / *Arm) -4/Armory -4/Lab -3/Research (discovered 3 exits: *Res x3) -2/Research History --------- Turn | Location | Event 8 | -11/Scrapyard | Discovered new exit (range 16) 113 | -11/Scrapyard | Entered Materials 301 | -10/Materials | Build established: Mutant 372 | -10/Materials | Discovered new exit (range 13) 414 | -10/Materials | Core integrity fell below 50% 443 | -10/Materials | Lost 5 parts (1p1n3w) 584 | -10/Materials | Discovered new exit (range 12) 685 | -10/Materials | Discovered new exit (range 16) 725 | -10/Materials | Entered Mines 746 | -10/Mines | Received a Mining Laser from a helpful Derelict 940 | -10/Mines | A weapon hastily lodged in a ceiling crevice suddenly fell to the ground 966 | -10/Mines | Learned location of 1 exit from Materials 1212 | -10/Mines | Assembled infested the area 1668 | -10/Mines | Discovered new exit (range 6) 1672 | -10/Mines | Discovered new exit (range 14) 1675 | -10/Mines | Received a Rocket Launcher from a helpful Derelict 1713 | -10/Mines | Joined a pair of Derelicts in attacking an 0b10 outpost 1790 | -10/Mines | Core integrity fell below 20% 2024 | -10/Mines | Build established: Scavenger-Mutant 2183 | -10/Mines | Entered Materials 2183 | -9/Materials | Evolved 2 slots: Utility x1, Weapon x1 2184 | -9/Materials | Identified exit to Mines 2860 | -9/Materials | Build established: Scavenger-Tank 2949 | -9/Materials | Entered Mines 3145 | -9/Mines | Found a damaged Exp. Sensor Array with a note attached 3149 | -9/Mines | Found Prototype Device 3168 | -9/Mines | Found a hidden stash of uninstalled traps 3360 | -9/Mines | Discovered new exit (range 9) 3387 | -9/Mines | Assisted by bots powering up and referring to "LRC-V3" 3733 | -9/Mines | Discovered new exit (range 6) 3939 | -9/Mines | Learned location of Zion (-6) 4009 | -9/Mines | Deemed a non-threat by the Exiles lab entrance 4010 | -9/Mines | Discovered new exit (range 5) 4025 | -9/Mines | Entered Exiles 4025 | -9/Exiles | Accompanied by 3 allies 4070 | -9/Exiles | Met 8R-AWN 4101 | -9/Exiles | Met EX-HEX 4212 | -9/Exiles | Met EX-DEC 4370 | -9/Exiles | Discovered new exit (range 10) 4394 | -9/Exiles | Entered Mines 4394 | -8/Mines | Accompanied by 3 allies 4726 | -8/Mines | Build established: Hauler-Mutant 4780 | -8/Mines | Discovered new exit (range 13) 4848 | -8/Mines | Entered Materials 4848 | -8/Materials | Evolved 2 slots: Utility x2 4983 | -8/Materials | Garrison activated, responded to threat 5037 | -8/Materials | Identified exit to Garrison 5039 | -8/Materials | Entered Garrison 5179 | -8/Garrison | Triggered checkpoint 5275 | -8/Garrison | Discovered new exit (range 12) 5426 | -8/Garrison | Discovered new exit (range 14) 5462 | -8/Garrison | Installed Relay Interface Framework 5514 | -8/Garrison | Triggered checkpoint 5563 | -8/Garrison | Lost 3 parts (1p2w) 5591 | -8/Garrison | Garrison Relay disabled 5666 | -8/Garrison | Entered Materials 6126 | -8/Materials | Build established: Hauler-Gunner 6202 | -8/Materials | Discovered new exit (range 15) 6655 | -8/Materials | Discovered new exit (range 22) 6958 | -8/Materials | Identified exit to Garrison 6958 | -8/Materials | Entered Garrison 6969 | -8/Garrison | Expanded RIF knowledge: Structural Interface 7030 | -8/Garrison | Triggered checkpoint 7195 | -8/Garrison | Spotted B-75 Beast 7199 | -8/Garrison | Core integrity fell below 50% 7457 | -8/Garrison | Triggered checkpoint 7768 | -8/Garrison | Garrison Relay disabled 7812 | -8/Garrison | Triggered checkpoint 7856 | -8/Garrison | Discovered new exit (range 9) 7878 | -8/Garrison | Entered Factory 7878 | -7/Factory | Evolved 2 slots: Propulsion x1, Utility x1 7879 | -7/Factory | Identified exit to Storage 7880 | -7/Factory | Identified Exp. Sensor Array 8015 | -7/Factory | Build established: Hauler-Mutant 8400 | -7/Factory | Identified exit to Lower Caves 8795 | -7/Factory | Entered Lower Caves 9121 | -7/Lower Caves | Encountered a Warlord checkpoint 9196 | -7/Lower Caves | Learned Factory garrison access intel 9463 | -7/Lower Caves | Found Alien Artifact 9463 | -7/Lower Caves | Identified Core Expander 9463 | -7/Lower Caves | Installed Core Expander, added new Propulsion slot 9514 | -7/Lower Caves | Discovered new exit (range 6) 9524 | -7/Lower Caves | Identified exit to Lower Caves 9646 | -7/Lower Caves | Entered another Lower Caves area 9807 | -7/Lower Caves | Discovered new exit (range 11) 9967 | -7/Lower Caves | Learned Factory garrison access intel 10252 | -7/Lower Caves | Encountered a Warlord checkpoint 10263 | -7/Lower Caves | Build established: Hauler-Skirmisher 10351 | -7/Lower Caves | Learned Factory terminal intel 10382 | -7/Lower Caves | Discovered new exit (range 5) 10454 | -7/Lower Caves | Identified exit to Data Miner 10456 | -7/Lower Caves | Entered Data Miner 10461 | -7/Data Miner | Discovered new exit (range 7) 10496 | -7/Data Miner | Met Data Miner 10528 | -7/Data Miner | Learned location of Section 7 (-2) 10528 | -7/Data Miner | Acquired the access code to Warlord's prototype stash 10559 | -7/Data Miner | Received God Mode back door access code from Data Miner 10843 | -7/Data Miner | Data Conduit disabled 10915 | -7/Data Miner | Found Prototype Device 10996 | -7/Data Miner | Lost 6 parts (1p3n2w) 11046 | -7/Data Miner | Build established: Mutant 11235 | -7/Data Miner | Identified Exp. Thermal Shield 11237 | -7/Data Miner | Found Exp. Thermal Shield 11589 | -7/Data Miner | Build established: Hauler-Mutant 11744 | -7/Data Miner | Identified exit to Proximity Caves 11746 | -7/Data Miner | Entered Proximity Caves 12437 | -6/Proximity Caves | Attacked by a faux Warlord 12455 | -6/Proximity Caves | Core integrity fell below 50% 12505 | -6/Proximity Caves | Lost 3 parts (1p2w) 12782 | -6/Proximity Caves | Build established: Hauler-Skirmisher 12857 | -6/Proximity Caves | Discovered new exit (range 7) 12869 | -6/Proximity Caves | Identified exit to Factory 12877 | -6/Proximity Caves | Entered Factory 12877 | -6/Factory | Evolved 2 slots: Utility x2 12878 | -6/Factory | Loaded intel: 22 terminal locations 12879 | -6/Factory | Loaded intel: 4 garrison access locations 12968 | -6/Factory | Identified exit to Lower Caves 12968 | -6/Factory | Identified exit to Extension 13374 | -6/Factory | Lost 3 parts (1n2w) 13571 | -6/Factory | Entered Extension 13604 | -6/Extension | Build established: Hauler-Mutant 14061 | -6/Extension | Rescued a captive Derelict 14195 | -6/Extension | Rescued A7 14471 | -6/Extension | Rescued a captive Derelict 14471 | -6/Extension | Rescued a captive Derelict 14656 | -6/Extension | Rescued a captive Derelict 14657 | -6/Extension | Rescued a captive Derelict 14811 | -6/Extension | Discovered new exit (range 10) 14812 | -6/Extension | Discovered new exit (range 6) 14827 | -6/Extension | Identified exit to Cetus 14833 | -6/Extension | Entered Cetus 14833 | -6/Cetus | Accompanied by 9 allies (A7) 14838 | -6/Cetus | Acquired a Cetus Manufacturing Module code from A7 14858 | -6/Cetus | Spotted Cetus Guard 14858 | -6/Cetus | Spotted Cetus Guard 14861 | -6/Cetus | Spotted Cetus Guard 14861 | -6/Cetus | Spotted Cetus Guard 14869 | -6/Cetus | Allies destroyed Cetus Guard 14880 | -6/Cetus | Allies destroyed Cetus Guard 14882 | -6/Cetus | Allies destroyed Cetus Guard 14885 | -6/Cetus | Allies destroyed Cetus Guard 14908 | -6/Cetus | Lost 3 parts (1n1u1w) 14969 | -6/Cetus | Started Cetus Manufacturing Module 14979 | -6/Cetus | Escorted A7 to Cetus Mainframe 14994 | -6/Cetus | Manufactured an Enhanced Grunt 15019 | -6/Cetus | Manufactured an Enhanced Grunt 15022 | -6/Cetus | Discovered new exit (range 15) 15044 | -6/Cetus | Manufactured an Enhanced Grunt 15069 | -6/Cetus | Manufactured an Enhanced Grunt 15094 | -6/Cetus | Manufactured an Enhanced Grunt 15114 | -6/Cetus | Spotted Cetus Guard 15115 | -6/Cetus | Spotted Cetus Guard 15117 | -6/Cetus | Spotted Cetus Guard 15118 | -6/Cetus | Spotted Cetus Guard 15123 | -6/Cetus | Allies destroyed Cetus Guard 15124 | -6/Cetus | Allies destroyed Cetus Guard 15124 | -6/Cetus | Allies destroyed Cetus Guard 15130 | -6/Cetus | Allies destroyed Cetus Guard 15132 | -6/Cetus | Discovered new exit (range 16) 15141 | -6/Cetus | Met Revision 17 15212 | -6/Cetus | Identified exit to Archives 15220 | -6/Cetus | Entered Archives 15220 | -6/Archives | Accompanied by 7 allies (A7) 15225 | -6/Archives | Received a hacking code to weaken MAIN.C 15343 | -6/Archives | Discovered new exit (range 15) 15409 | -6/Archives | Build established: Scavenger-Gunner 15441 | -6/Archives | Discovered new exit (range 15) 15567 | -6/Archives | Identified exit to Hub_04(d) 16546 | -6/Archives | Entered Hub_04(d) 16546 | -6/Hub_04(d) | Accompanied by 4 allies 16733 | -6/Hub_04(d) | Discovered new exit (range 7) 16741 | -6/Hub_04(d) | Identified exit to Factory 16857 | -6/Hub_04(d) | Build established: Scavenger-Skirmisher 16941 | -6/Hub_04(d) | Discovered exit to Factory (range 6) 17115 | -6/Hub_04(d) | Found Scatter Rocket Array 17234 | -6/Hub_04(d) | Network Hub disabled 17325 | -6/Hub_04(d) | Build established: Scavenger-Mutant 17420 | -6/Hub_04(d) | Spotted Lightning 17426 | -6/Hub_04(d) | System corruption reached 10% 17428 | -6/Hub_04(d) | Spotted Lightning 17429 | -6/Hub_04(d) | Spotted Lightning 17433 | -6/Hub_04(d) | Destroyed Lightning 17438 | -6/Hub_04(d) | Destroyed Lightning 17458 | -6/Hub_04(d) | Spotted Lightning 17466 | -6/Hub_04(d) | Spotted Lightning 17473 | -6/Hub_04(d) | System corruption reached 30% 17518 | -6/Hub_04(d) | Lost 6 parts (1p2u3w) 17572 | -6/Hub_04(d) | Core integrity fell below 50% 17588 | -6/Hub_04(d) | Entered Factory 17588 | -5/Factory | Evolved 2 slots: Utility x1, Weapon x1 17589 | -5/Factory | Loaded intel: 4 garrison access locations 17612 | -5/Factory | Lost 6 parts (2n2u2w) 17708 | -5/Factory | Identified exit to Upper Caves 17972 | -5/Factory | Spotted B-75 Beast 18096 | -5/Factory | Sucked down chute 18096 | -5/Factory | Entered Waste 18097 | -5/Waste | Joined by Warlord forces that had cleared the area 18100 | -5/Waste | 1 allies followed down the chute 18447 | -5/Waste | Discovered new exit (range 13) 18581 | -5/Waste | Build established: Scavenger-Tank 18647 | -5/Waste | Identified exit to Factory 18652 | -5/Waste | Entered Factory 18652 | -5/Factory | Accompanied by 21 allies 18666 | -5/Factory | Central database locked down 18945 | -5/Factory | Repaired Broken Adv. Actuator Array 19005 | -5/Factory | Build established: Scavenger-Skirmisher 19028 | -5/Factory | Fabricated Imp. Kinecellerator (x1) 19062 | -5/Factory | Fabricated I-36 Angel (x1) 19286 | -5/Factory | Entered Upper Caves 19286 | -5/Upper Caves | Accompanied by 21 allies 19287 | -5/Upper Caves | Encountered a Warlord checkpoint 19780 | -5/Upper Caves | Attracted the attention of an 0b10 checkpoint 20084 | -5/Upper Caves | Learned Factory terminal intel 20456 | -5/Upper Caves | Discovered new exit (range 6) 20462 | -5/Upper Caves | Identified exit to Upper Caves 20499 | -5/Upper Caves | Entered another Upper Caves area 20499 | -5/Upper Caves | Accompanied by 17 allies 20686 | -5/Upper Caves | Encountered a Warlord checkpoint 20741 | -5/Upper Caves | Learned Factory garrison access intel 20746 | -5/Upper Caves | Discovered new exit (range 7) 20754 | -5/Upper Caves | Identified exit to Zhirov 21188 | -5/Upper Caves | Attracted the attention of an 0b10 checkpoint 21325 | -5/Upper Caves | Learned Factory terminal intel 21623 | -5/Upper Caves | Entered Zhirov 21623 | -5/Zhirov | Accompanied by 15 allies 21623 | -5/Zhirov | Discovered new exit (range 3) 21652 | -5/Zhirov | Met Zhirov 21681 | -5/Zhirov | Learned location of Quarantine (-2) 21681 | -5/Zhirov | Learned location of Testing (-3) 21681 | -5/Zhirov | Learned location of Command (-1) 21697 | -5/Zhirov | Zhirov requested help retrieving the SGEMP Prototype 21726 | -5/Zhirov | Found Alien Artifact 21726 | -5/Zhirov | Identified Integrated Reactor 21726 | -5/Zhirov | Installed Integrated Reactor, increased core energy generation (+10) 21751 | -5/Zhirov | Found Alien Artifact 22010 | -5/Zhirov | Build established: Scavenger-Mutant 22340 | -5/Zhirov | Attacked by Zhirov 22347 | -5/Zhirov | Zhirov warped through subspace 22357 | -5/Zhirov | Zhirov detonated his lab 22357 | -5/Zhirov | Cloak Generator disabled 22419 | -5/Zhirov | Build established: Scavenger-Skirmisher 22830 | -5/Zhirov | Build established: Scavenger-Mutant 22847 | -5/Zhirov | Identified exit to Proximity Caves 22854 | -5/Zhirov | Entered Proximity Caves 22854 | -4/Proximity Caves | Accompanied by 1 ally 22858 | -4/Proximity Caves | Attracted the attention of an 0b10 outpost 23202 | -4/Proximity Caves | Build established: Scavenger-Skirmisher 23603 | -4/Proximity Caves | Identified exit to Factory 23617 | -4/Proximity Caves | Entered Factory 23617 | -4/Factory | Accompanied by 1 ally 23617 | -4/Factory | Evolved 2 slots: Utility x2 23618 | -4/Factory | Loaded intel: 20 terminal locations 23619 | -4/Factory | Loaded intel: 4 garrison access locations 23818 | -4/Factory | Identified exit to Upper Caves 23818 | -4/Factory | Identified exit to Armory 24371 | -4/Factory | Identified Transdimensional Reconstructor 24387 | -4/Factory | Spotted B-86 Titan 24656 | -4/Factory | Spotted B-86 Titan 24963 | -4/Factory | Repaired Broken Centrium Heavy Treads 24974 | -4/Factory | Destroyed 8 combat bots 24990 | -4/Factory | System corruption reached 10% 25014 | -4/Factory | Lost 8 parts (1p3u4w) 25108 | -4/Factory | Repaired Centrium Medium Armor Plating 25320 | -4/Factory | Entered Armory 25342 | -4/Armory | Spotted B-86 Titan 25350 | -4/Armory | Lost 5 parts (2n1u2w) 25360 | -4/Armory | Allied Derelicts emerged from ambush trap array 25410 | -4/Armory | Rewired B-86 Titan 25473 | -4/Armory | Found Quantum Capacitor 25550 | -4/Armory | Found Hvy. Reflective Plating 25617 | -4/Armory | Fabricated Enh. Autogun? 25774 | -4/Armory | Fabricated Enh. Autogun? 25959 | -4/Armory | Fabricated Enh. Autogun? 26007 | -4/Armory | Fabricated Exp. Sensor Array? 26123 | -4/Armory | Fabricated Imp. Weapon Cycler? 26150 | -4/Armory | System corruption reached 30% 26174 | -4/Armory | Fabricated Enh. Autogun (x1) 26231 | -4/Armory | Fabricated Humpback (x1) 26234 | -4/Armory | Fabricated Enh. Autogun? 26291 | -4/Armory | Fabricated Adv. Target Analyzer (x1) 26320 | -4/Armory | Fabricated Enh. Autogun (x1) 26376 | -4/Armory | Fabricated Exp. Optical Array (x1) 26381 | -4/Armory | Fabricated Enh. Autogun? 26488 | -4/Armory | Fabricated Enh. Autogun (x1) 26519 | -4/Armory | Fabricated Enh. Autogun (x1) 26547 | -4/Armory | Fabricated Enh. Autogun (x1) 26579 | -4/Armory | Fabricated Enh. Autogun? 26656 | -4/Armory | Fabricated Enh. Autogun? 26727 | -4/Armory | Local fabrication network quarantined 26942 | -4/Armory | Core integrity fell below 50% 27025 | -4/Armory | Found Mni. Smartbomb Launcher 27029 | -4/Armory | Found Mni. Smartbomb Launcher 27722 | -4/Armory | Build established: Hauler-Mutant 27854 | -4/Armory | First assault squad dispatched 27860 | -4/Armory | Warped through subspace to slip node 27860 | -4/Armory | Discovered new exit (range 1) 27860 | -4/Armory | Identified exit to Lab 27879 | -4/Armory | Entered Lab 27879 | -4/Lab | Discovered new exit (range 9) 27894 | -4/Lab | Identified exit to Research 28508 | -4/Lab | Entered Research 28508 | -3/Research | Evolved 2 slots: Weapon x2 28708 | -3/Research | Revision forces began assault on 0b10 28727 | -3/Research | Met up with Revision 17++ 29157 | -3/Research | Build established: Hauler-Executioner 29208 | -3/Research | Research terminal network offline 29321 | -3/Research | Found Prototype Device 29321 | -3/Research | Identified Exp. Focal Shield 29409 | -3/Research | Discovered new exit (range 3) 29409 | -3/Research | Spotted Striker 29422 | -3/Research | Identified exit to Research 29431 | -3/Research | Destroyed Striker 29470 | -3/Research | Found Fusion Bomb Launcher 29561 | -3/Research | Found Prototype Device 29561 | -3/Research | Identified EM Dispersion Field 29613 | -3/Research | Spotted B-86 Titan 30028 | -3/Research | Build established: Hauler-Mutant 30063 | -3/Research | Found Gamma Bomb Array 30230 | -3/Research | Found Prototype Processor 30230 | -3/Research | Identified Spectral Analyzer 30350 | -3/Research | Build established: Hauler-Executioner 30360 | -3/Research | Discovered exit to Research (range 2) 30508 | -3/Research | Spotted B-86 Titan 30514 | -3/Research | Spotted Striker 30517 | -3/Research | Spotted Striker 30521 | -3/Research | Destroyed B-86 Titan 30530 | -3/Research | Destroyed Striker 30537 | -3/Research | Destroyed Striker 30547 | -3/Research | Spotted Striker 30549 | -3/Research | Spotted Striker 31043 | -3/Research | Found Unknown Device 31043 | -3/Research | Identified Antimissile System 31047 | -3/Research | Found Prototype Processor 31047 | -3/Research | Identified Exp. Melee Analysis Suite 31168 | -3/Research | Discovered exit to Research (range 7) 31501 | -3/Research | Spotted Striker 31504 | -3/Research | Destroyed Striker 31602 | -3/Research | Build established: Machinist-Executioner 31667 | -3/Research | Destroyed Striker 31715 | -3/Research | Spotted Striker 31718 | -3/Research | Destroyed Striker 32134 | -3/Research | Spotted Striker 32150 | -3/Research | Destroyed Striker 32253 | -3/Research | Spotted Striker 32258 | -3/Research | Destroyed Striker 32320 | -3/Research | Spotted Striker 32322 | -3/Research | Spotted Striker 32344 | -3/Research | Destroyed Striker 32700 | -3/Research | Destroyed Striker 33217 | -3/Research | Repaired Enh. Autogun 33223 | -3/Research | Spotted Executioner 33226 | -3/Research | Spotted Striker 33235 | -3/Research | Destroyed Executioner 33236 | -3/Research | Spotted Striker 33237 | -3/Research | Spotted Striker 33239 | -3/Research | Destroyed Striker 33243 | -3/Research | Destroyed Striker 33244 | -3/Research | Destroyed Striker 33653 | -3/Research | Spotted Striker 33657 | -3/Research | Destroyed Striker 33681 | -3/Research | Spotted Striker 33686 | -3/Research | Spotted Striker 33692 | -3/Research | Destroyed Striker 33700 | -3/Research | Destroyed Striker 33756 | -3/Research | Destroyed 7 combat bots 33763 | -3/Research | Lost 9 parts (1p2n1u5w) 33833 | -3/Research | Spotted Striker 33836 | -3/Research | Spotted Striker 33850 | -3/Research | Destroyed Striker 33852 | -3/Research | Spotted Executioner 33859 | -3/Research | Spotted Striker 33874 | -3/Research | Entered another Research area 33874 | -2/Research | Evolved 2 slots: Utility x2 33901 | -2/Research | Lost 7 parts (1p3u3w) 33918 | -2/Research | Spotted B-90 Cyclops 34156 | -2/Research | Build established: Machinist-Gunner 34273 | -2/Research | Fabricated Enh. Autogun (x1) 34316 | -2/Research | Fabricated Enh. Autogun (x1) 34570 | -2/Research | Garrison activated, responded to threat 34584 | -2/Research | Spotted B-90 Cyclops 34596 | -2/Research | Destroyed 8 combat bots 34671 | -2/Research | First assault squad dispatched 34727 | -2/Research | Destroyed 9 combat bots 34767 | -2/Research | System corruption reached 10% 34809 | -2/Research | Lost 9 parts (1p3n2u3w) 34872 | -2/Research | Core integrity fell below 50% 34897 | -2/Research | Core integrity fell below 20% 34904 | -2/Research | Destroyed by G-73 Enforcer with Phase Gun Last Messages --------------- 34891_ Slug penetrates W-44 Eye. 34891_ Slug penetrates Wall. 34891_ Slug penetrates R-10 Processor. 34892_ R-10 Processor collects Field Recycling Unit. 34894_ U-05 Engineer lays Concrete. 34894_ Slug penetrates Wall. 34896_ Penetrated by Slug. 34896_ R-10 Processor collects Med. Storage Unit. 34897_ Slug penetrates T-07 Excavator. 34897_ Slug penetrates Wall. 34899_ Biometal Heavy Treads destroyed. 34899_ Penetrated by Slug. 34900_ Slammed into H-88 Terminator. 34901_ System corrupted: Substantial component data lost. 34901_ Slammed into H-88 Terminator. 34902_ Penetrated by Slug. 34903_ Slammed into H-88 Terminator. 34903_ Adv. Target Analyzer destroyed. 34903_ System corrupted by crushing effect (+1). 34903_ Slug penetrates Wall. Map ----- +----------------------------------------------------+ | ?????????????????????????# ?#=%=!|!#? | | ?????????????????????????#!! ?#]=!!*=#? | | ?????????????????????????#! #=!%!![#? | | ?????????????????????????# ####/#### | | ???????????????????????# " %!=[ | | ???????????????????????# "%" %!% | | ???????????????????????### " === | | ?????????????????????????# ########+## | | ?????????????????????? #????? ## | | ?????????????????????###########+## #??? #% | | ??????????????????????????????????# #?# # T | | ??????????????????????????????????# #?# # | | ??????????????????????????????????# #?# # | | ??????????????????????????????????# #?# # ! | | ??????????????????????????????????# #?##########/ | | ??????????????????????????????????# #??????# * | | ??????????????????????????????????# #??????# | | ?????????????????????????????????## ####???# | | ?????????????????????????????????# #???# | | ?????????????????????????????????# #???#####" | | ?????????????????????????????????# #???????# | | ???????# ################# ####????# | | ???????+ / t #????# | | ???????# ####### l ###########+## #????# | | ???????????????????????# g #???????? # ###### | | ???????????????????????#h@ #?????? # + | | ???????????????????????#%g #?????# # ###### | | ???????????????????????# gk #?????# # #????# | | ???????????????????????#h #?????# # #????# | | ???????????????????????#%####?????# # #????# | | ???????????????????????#%#????????######## #????# | | ???????????????????????# #???????????????# #????# | | ???????????????????????# #???????????????# #????## | | ???????????#############g#???????????????#+#?????? | | ???????????+ % #???????????????????????? | | ???????????# ####???????????????????????? | | ????????#### #??????????????????????????? | | #??????????????????????????? | | #########+########/###????????????????????????? | | ?????????? ?????# #????????????????????##### | | ?????????#???????# #????????????????????# | | ?????????????????# #????????????????????# | | ?????????????????# #????????????????????# | | ?????????????????# % #????????????????????# " | | ?????????????????# #????????????????????# " | | ??????????????#### #????????????????????# " | | ??????????????# ## ##########+########### " | | ??????????????# ## " " | | ???????##?????# ## " ^ | | ????#### ######"## # | +----------------------------------------------------+ Best States ------------- Heat Dissipation 57 Coolant Potential 100 Energy Generation 35 Energy Capacity 925 Matter Stores 300 Matter Capacity 550 Sight Range 23 Robot Scan Range 30 Terrain Scan Density 10 Jamming Range 12 Power Amplification 30 Additional Mass Support 12 Armor Coverage 1350 Resistance: TH 30 Resistance: EM 15 Power Shielding 66 Propulsion Shielding 33 Utility Shielding 66 Weapon Shielding 90 Point Defense Rating 240 Weapon Cycling 25 Phase Shifting 5 Evasion (%) 50 Targeting Accuracy 8 Melee Accuracy 12 Target Analysis 8 Armor Integrity Analysis 66 Recoil Reduction 4 Matter Filtering 50 Particle Charging 25 Kinecelleration 40 Force Boost 3 Offensive Hacking 38 Defensive Hacking 10 Item Schematics ----------------- Humpback | -8/Materials | Scanalyzed Actuator Array | -8/Materials | Scanalyzed Combat Drone Bay | -7/Data Miner | Free Lgt. Regenerative Plating | -7/Data Miner | Free Exp. Flexi-carbon Leg | -7/Data Miner | Free Cmb. Gravmag System | -7/Data Miner | Free Triangulator | -7/Data Miner | Free Exp. Terrain Scanner | -7/Data Miner | Free Exp. Terrain Scan Processor | -7/Data Miner | Free Exp. Targeting Computer | -7/Data Miner | Free Tactical Coordination Suite | -7/Data Miner | Free Exp. Transmission Jammer | -7/Data Miner | Free Enh. Autogun | -6/Factory | Hacked Exp. Weapon Shielding | -5/Factory | Hacked Imp. Kinecellerator | -5/Factory | Hacked Assault Drone Bay | -5/Zhirov | Free Exp. Heat Sink | -5/Zhirov | Free Imp. Arc Thrower | -5/Zhirov | Free Exp. Optical Array | -5/Zhirov | Free Exp. Sensor Array | -4/Factory | Hacked Imp. Weapon Cycler | -4/Factory | Hacked Adv. Target Analyzer | -4/Factory | Hacked Centrium Medium Armor Plating | -4/Factory | Scanalyzed Adv. Focal Shield | -4/Factory | Scanalyzed Hyp. Railgun | -4/Factory | Hacked Ragnarok Missile Launcher | -3/Research | Hacked Robot Schematics ------------------ S-27 Virus | -7/Data Miner | Free G-50 Soldier | -7/Data Miner | Free L-41 Fighter | -7/Data Miner | Free H-66 Slayer | -7/Data Miner | Free I-36 Angel | -7/Data Miner | Free I-47 Archangel | -7/Data Miner | Free Fabricated ------------ Imp. Kinecellerator | x1 | -5/Factory I-36 Angel | x1 | -5/Factory Enh. Autogun | x1 | -4/Armory Enh. Autogun | x1 | -4/Armory Enh. Autogun | x1 | -4/Armory Exp. Sensor Array | x1 | -4/Armory Imp. Weapon Cycler | x2 | -4/Armory Enh. Autogun | x1 | -4/Armory Humpback | x1 | -4/Armory Enh. Autogun | x1 | -4/Armory Adv. Target Analyzer | x1 | -4/Armory Enh. Autogun | x1 | -4/Armory Exp. Optical Array | x1 | -4/Armory Enh. Autogun | x1 | -4/Armory Enh. Autogun | x1 | -4/Armory Enh. Autogun | x1 | -4/Armory Enh. Autogun | x1 | -4/Armory Enh. Autogun | x1 | -4/Armory Enh. Autogun | x1 | -4/Armory Enh. Autogun | x1 | -2/Research Enh. Autogun | x1 | -2/Research Alien Tech Used ----------------- Core Expander Integrated Reactor Transdimensional Reconstructor Achievements -------------- Revolutionary Research Challenges ------------ None Game ------ Seed SurveybotDisruptorShield Manual? 0 Play Time 05:17:35 Cumulative 173.1 hours Start 2021.07.03 @ 12:35:05 End 2021.07.03 @ 18:34:31 Sessions 1 Manual Loads 0 Difficulty Rogue Special Mode None Game No. 55 Rogue 55 Adventurer 0 Explorer 0 Win Type - Total 3 Types 2/0/1/0/0/0/0/0/0 Lore% 67 Gallery% 77 Achievement% 62 Wizard Run 0 Options --------- ASCII 0 Keyboard 0 Movement Numpad Keybinds 0 Fullscreen 1 Font 18/SmallcapsGlow Map View 76x50 Tactical HUD 1 Map Filters NONE Filters NONE Steam 1 RUN: bde2f726-ff38-44f6-9669-30bf72886452